[Event "Late-Titled-Tuesday-Blitz-May-07-2024"]
[Site "Chess.com"]
[Date "2024.05.07"]
[Round "10"]
[White "realburq"]
[Black "wild3000"]
[Result "0-1"]
[WhiteElo "2356"]
[BlackElo "2484"]
[TimeControl "180+1"]
[EndTime "15:57:06 PDT"]
[Termination "wild3000 won by checkmate"]

1. e4 {[%clk 0:03:00.9]} 1... e6 {[%clk 0:02:46.9]} 2. d4 {[%clk 0:03:00.5]}
2... a6 {[%clk 0:02:46.9]} 3. c4 {[%clk 0:02:57.5]} 3... d6 {[%clk 0:02:46.6]}
4. Nc3 {[%clk 0:02:57.5]} 4... Nf6 {[%clk 0:02:46.5]} 5. f4 {[%clk 0:02:53.7]}
5... c5 {[%clk 0:02:46.1]} 6. d5 {[%clk 0:02:40.9]} 6... exd5 {[%clk 0:02:45.5]}
7. cxd5 {[%clk 0:02:41.7]} 7... Be7 {[%clk 0:02:42.5]} 8. e5 {[%clk 0:02:42.1]}
8... Ng4 {[%clk 0:02:42.4]} 9. e6 {[%clk 0:02:38.2]} 9... h5 {[%clk 0:02:17]}
10. Be2 {[%clk 0:02:25.8]} 10... fxe6 {[%clk 0:02:06.3]} 11. Bxg4 {[%clk
0:02:25.5]} 11... hxg4 {[%clk 0:02:06.4]} 12. Qxg4 {[%clk 0:02:23.6]} 12... exd5
{[%clk 0:01:51.4]} 13. Qg6+ {[%clk 0:02:07.9]} 13... Kf8 {[%clk 0:01:48.9]} 14.
Nxd5 {[%clk 0:02:02.8]} 14... Nc6 {[%clk 0:01:40.8]} 15. Nf3 {[%clk 0:02:00.5]}
15... Rh6 {[%clk 0:01:33.7]} 16. Qd3 {[%clk 0:01:31.3]} 16... Re6+ {[%clk
0:00:54.9]} 17. Be3 {[%clk 0:01:17.7]} 17... Qa5+ {[%clk 0:00:47.6]} 18. Kf2
{[%clk 0:01:03.6]} 18... Nb4 {[%clk 0:00:47.2]} 19. Nxb4 {[%clk 0:01:02.9]}
19... Qxb4 {[%clk 0:00:47.2]} 20. b3 {[%clk 0:00:49.3]} 20... Qe4 {[%clk
0:00:47]} 21. Qd2 {[%clk 0:00:37.1]} 21... Bd7 {[%clk 0:00:41.2]} 22. Rae1
{[%clk 0:00:37]} 22... Qf5 {[%clk 0:00:34]} 23. g4 {[%clk 0:00:27.9]} 23... Qxg4
{[%clk 0:00:31.4]} 24. Rhg1 {[%clk 0:00:28]} 24... Bh4+ {[%clk 0:00:29.8]} 25.
Nxh4 {[%clk 0:00:22.1]} 25... Qxh4+ {[%clk 0:00:29.7]} 26. Kf3 {[%clk
0:00:22.8]} 26... Bc6+ {[%clk 0:00:29.1]} 27. Ke2 {[%clk 0:00:20.7]} 27... Rae8
{[%clk 0:00:22.6]} 28. Kd3 {[%clk 0:00:21.1]} 28... Qh7+ {[%clk 0:00:20.1]} 29.
Kc3 {[%clk 0:00:20.7]} 29... Qe4 {[%clk 0:00:17.6]} 30. Bxc5 {[%clk 0:00:14.9]}
30... Qf3+ {[%clk 0:00:14.9]} 31. Kb2 {[%clk 0:00:13.2]} 31... dxc5 {[%clk
0:00:14.7]} 32. Rxe6 {[%clk 0:00:12]} 32... Rxe6 {[%clk 0:00:15]} 33. Qd8+
{[%clk 0:00:12.2]} 33... Kf7 {[%clk 0:00:12]} 34. Qg5 {[%clk 0:00:10.2]} 34...
Qe2+ {[%clk 0:00:10.6]} 35. Ka3 {[%clk 0:00:10.6]} 35... g6 {[%clk 0:00:10.6]}
36. f5 {[%clk 0:00:10.3]} 36... gxf5 {[%clk 0:00:09.4]} 37. Qg7+ {[%clk
0:00:05.6]} 37... Ke8 {[%clk 0:00:09.4]} 38. Qc7 {[%clk 0:00:05.9]} 38... Re7
{[%clk 0:00:07.3]} 39. Qf4 {[%clk 0:00:02.7]} 39... Qe4 {[%clk 0:00:06.8]} 40.
Rg8+ {[%clk 0:00:03.3]} 40... Kd7 {[%clk 0:00:06.5]} 41. Qg5 {[%clk 0:00:01.7]}
41... Qb4+ {[%clk 0:00:06.2]} 42. Kb2 {[%clk 0:00:02.2]} 42... Re2+ {[%clk
0:00:06.1]} 43. Kc1 {[%clk 0:00:02.8]} 43... Qe1# {[%clk 0:00:06]} 0-1

[Event "Late-Titled-Tuesday-Blitz-May-07-2024"]
[Site "Chess.com"]
[Date "2024.05.07"]
[Round "10"]
[White "BabageldiAnnaberdiyev"]
[Black "KNVB"]
[Result "0-1"]
[WhiteElo "2564"]
[BlackElo "2788"]
[TimeControl "180+1"]
[EndTime "15:57:07 PDT"]
[Termination "KNVB won by resignation"]

1. e4 {[%clk 0:02:32.7]} 1... a5 {[%clk 0:03:00.9]} 2. Nf3 {[%clk 0:02:30.3]}
2... Ra6 {[%clk 0:03:01.8]} 3. Bxa6 {[%clk 0:02:27.6]} 3... Nxa6 {[%clk
0:03:02.7]} 4. O-O {[%clk 0:02:25.7]} 4... e6 {[%clk 0:03:03.6]} 5. Re1 {[%clk
0:02:25.9]} 5... b6 {[%clk 0:03:04.5]} 6. d3 {[%clk 0:02:26.1]} 6... Bb7 {[%clk
0:03:05.2]} 7. Nbd2 {[%clk 0:02:26.4]} 7... d6 {[%clk 0:03:04.6]} 8. a3 {[%clk
0:02:26.9]} 8... Nb8 {[%clk 0:03:04.5]} 9. Qe2 {[%clk 0:02:27.3]} 9... Ne7
{[%clk 0:03:02.9]} 10. Nf1 {[%clk 0:02:27.7]} 10... Ng6 {[%clk 0:03:01.8]} 11.
Bg5 {[%clk 0:02:24.2]} 11... f6 {[%clk 0:03:02.1]} 12. Be3 {[%clk 0:02:23.6]}
12... Nd7 {[%clk 0:03:02.2]} 13. Ng3 {[%clk 0:02:23.2]} 13... Be7 {[%clk
0:02:38.5]} 14. b4 {[%clk 0:02:22.9]} 14... Qa8 {[%clk 0:02:37.6]} 15. c4 {[%clk
0:02:20.1]} 15... h5 {[%clk 0:02:35.2]} 16. h4 {[%clk 0:02:19.8]} 16... Kf7
{[%clk 0:02:34.2]} 17. Reb1 {[%clk 0:02:13.8]} 17... Nde5 {[%clk 0:01:59.7]} 18.
Nxe5+ {[%clk 0:02:08.7]} 18... Nxe5 {[%clk 0:01:22.9]} 19. c5 {[%clk 0:02:06.8]}
19... bxc5 {[%clk 0:01:02]} 20. bxc5 {[%clk 0:02:06.8]} 20... Ba6 {[%clk
0:01:02.7]} 21. Rd1 {[%clk 0:02:01.7]} 21... dxc5 {[%clk 0:00:40.6]} 22. Rac1
{[%clk 0:02:00.8]} 22... c4 {[%clk 0:00:41.3]} 23. dxc4 {[%clk 0:02:00.4]} 23...
Bxa3 {[%clk 0:00:37.2]} 24. f4 {[%clk 0:01:58.5]} 24... Bxc1 {[%clk 0:00:28.2]}
25. fxe5 {[%clk 0:01:55.2]} 25... Bxe3+ {[%clk 0:00:10.9]} 26. Qxe3 {[%clk
0:01:56.1]} 26... Rd8 {[%clk 0:00:11.5]} 27. Ra1 {[%clk 0:01:50.6]} 27... Bxc4
{[%clk 0:00:02.2]} 28. exf6 {[%clk 0:01:50.5]} 28... gxf6 {[%clk 0:00:01]} 29.
Qh6 {[%clk 0:01:46.4]} 29... Rh8 {[%clk 0:00:01.2]} 30. Qf4 {[%clk 0:01:44]}
30... e5 {[%clk 0:00:01.7]} 31. Qc1 {[%clk 0:01:39]} 31... Be6 {[%clk
0:00:01.4]} 32. Qxc7+ {[%clk 0:01:37.6]} 32... Kg6 {[%clk 0:00:02.1]} 33. Rxa5
{[%clk 0:01:31.4]} 33... Qb8 {[%clk 0:00:02.7]} 34. Qc6 {[%clk 0:01:09.8]} 34...
Qc8 {[%clk 0:00:02.5]} 35. Ra6 {[%clk 0:01:02.8]} 35... Qxc6 {[%clk 0:00:02.4]}
36. Rxc6 {[%clk 0:01:03.7]} 36... Bg4 {[%clk 0:00:03.2]} 37. Nf1 {[%clk
0:00:59]} 37... Rd8 {[%clk 0:00:03.8]} 38. Nh2 {[%clk 0:00:59]} 38... Rd4 {[%clk
0:00:03]} 39. Kf2 {[%clk 0:00:49.6]} 39... Rxe4 {[%clk 0:00:02.6]} 40. Rb6
{[%clk 0:00:50]} 40... Ra4 {[%clk 0:00:02.2]} 41. Nf1 {[%clk 0:00:44.8]} 41...
Ra2+ {[%clk 0:00:02.1]} 42. Kg3 {[%clk 0:00:44.1]} 42... Ra3+ {[%clk 0:00:02.4]}
43. Kf2 {[%clk 0:00:43.6]} 43... Ra2+ {[%clk 0:00:02.5]} 44. Kg3 {[%clk
0:00:43.7]} 44... Bf5 {[%clk 0:00:02.4]} 45. Ne3 {[%clk 0:00:41.5]} 45... Be4
{[%clk 0:00:02.7]} 46. Rb4 {[%clk 0:00:41]} 46... f5 {[%clk 0:00:02.8]} 47. Rb6+
{[%clk 0:00:39.2]} 47... Kf7 {[%clk 0:00:03.1]} 48. Nc4 {[%clk 0:00:38.1]} 48...
f4+ {[%clk 0:00:03.1]} 49. Kh3 {[%clk 0:00:37.9]} 49... Bxg2+ {[%clk 0:00:03.4]}
50. Kh2 {[%clk 0:00:38.1]} 50... Bd5+ {[%clk 0:00:03.7]} 0-1

[Event "Late-Titled-Tuesday-Blitz-May-07-2024"]
[Site "Chess.com"]
[Date "2024.05.07"]
[Round "10"]
[White "azikom"]
[Black "N_Mullodzhanov"]
[Result "1-0"]
[WhiteElo "2742"]
[BlackElo "2556"]
[TimeControl "180+1"]
[EndTime "15:57:07 PDT"]
[Termination "azikom won by checkmate"]

1. d4 {[%clk 0:03:00.5]} 1... Nf6 {[%clk 0:02:59.5]} 2. c4 {[%clk 0:03:00.1]}
2... g6 {[%clk 0:02:59.4]} 3. Nc3 {[%clk 0:03:00.3]} 3... Bg7 {[%clk 0:02:59.7]}
4. e4 {[%clk 0:03:00.9]} 4... d6 {[%clk 0:03:00.3]} 5. f3 {[%clk 0:03:00.1]}
5... O-O {[%clk 0:03:00.8]} 6. Bg5 {[%clk 0:03:00.6]} 6... h6 {[%clk 0:02:58.1]}
7. Be3 {[%clk 0:03:00.7]} 7... e5 {[%clk 0:02:57.3]} 8. Nge2 {[%clk 0:02:57.2]}
8... Nc6 {[%clk 0:02:56.1]} 9. Qd2 {[%clk 0:02:54.4]} 9... Kh7 {[%clk
0:02:50.9]} 10. d5 {[%clk 0:02:54]} 10... Ne7 {[%clk 0:02:49.1]} 11. g4 {[%clk
0:02:52.6]} 11... Nd7 {[%clk 0:02:41.5]} 12. h4 {[%clk 0:02:47.8]} 12... f5
{[%clk 0:02:40.4]} 13. h5 {[%clk 0:02:46.2]} 13... f4 {[%clk 0:02:30.8]} 14.
hxg6+ {[%clk 0:02:45.4]} 14... Nxg6 {[%clk 0:02:31.1]} 15. Bf2 {[%clk 0:02:46]}
15... a5 {[%clk 0:02:25.1]} 16. O-O-O {[%clk 0:02:44.9]} 16... b6 {[%clk
0:02:19.5]} 17. Kb1 {[%clk 0:02:45]} 17... Ba6 {[%clk 0:02:17.9]} 18. Nc1 {[%clk
0:02:42.3]} 18... Nc5 {[%clk 0:02:16.8]} 19. Nb5 {[%clk 0:02:39.7]} 19... a4
{[%clk 0:02:14.2]} 20. Be2 {[%clk 0:02:36.7]} 20... Bxb5 {[%clk 0:01:52.7]} 21.
cxb5 {[%clk 0:02:36.1]} 21... a3 {[%clk 0:01:53]} 22. b3 {[%clk 0:02:32.9]}
22... Qe7 {[%clk 0:01:34]} 23. Qc2 {[%clk 0:02:32.1]} 23... Bf6 {[%clk
0:01:32.7]} 24. Nd3 {[%clk 0:02:23.1]} 24... Bg5 {[%clk 0:01:22.7]} 25. Nb4
{[%clk 0:02:21.9]} 25... Qf6 {[%clk 0:01:16.4]} 26. Na6 {[%clk 0:02:09.9]} 26...
Qe7 {[%clk 0:01:04.1]} 27. b4 {[%clk 0:02:08.5]} 27... Nxa6 {[%clk 0:00:43.7]}
28. bxa6 {[%clk 0:02:09.4]} 28... b5 {[%clk 0:00:38.9]} 29. Rc1 {[%clk
0:01:59.8]} 29... Rxa6 {[%clk 0:00:32.9]} 30. Qxc7 {[%clk 0:01:59.1]} 30... Ra4
{[%clk 0:00:29.6]} 31. Be1 {[%clk 0:01:51.6]} 31... Qxc7 {[%clk 0:00:20.7]} 32.
Rxc7+ {[%clk 0:01:51]} 32... Ne7 {[%clk 0:00:19]} 33. Bxb5 {[%clk 0:01:49.8]}
33... Raa8 {[%clk 0:00:16.8]} 34. Bd7 {[%clk 0:01:45.1]} 34... Rab8 {[%clk
0:00:12.9]} 35. Kc2 {[%clk 0:01:43.2]} 35... Kh8 {[%clk 0:00:11.3]} 36. Kb3
{[%clk 0:01:42]} 36... Kg7 {[%clk 0:00:11.8]} 37. Be6 {[%clk 0:01:40]} 37... Kf6
{[%clk 0:00:11.7]} 38. Bd2 {[%clk 0:01:36.1]} 38... Ra8 {[%clk 0:00:11.8]} 39.
Bc1 {[%clk 0:01:30.9]} 39... Ra6 {[%clk 0:00:09.4]} 40. Rh2 {[%clk 0:01:27.8]}
40... Rfa8 {[%clk 0:00:09.2]} 41. Rhc2 {[%clk 0:01:24.1]} 41... Rb8 {[%clk
0:00:08.5]} 42. R2c4 {[%clk 0:01:08.8]} 42... Rba8 {[%clk 0:00:07.9]} 43. Rd7
{[%clk 0:01:05.1]} 43... Bh4 {[%clk 0:00:07.9]} 44. Rcc7 {[%clk 0:01:02]} 44...
Re8 {[%clk 0:00:07.7]} 45. Bxa3 {[%clk 0:00:59]} 45... Rea8 {[%clk 0:00:07]} 46.
Bb2 {[%clk 0:00:58]} 46... Re8 {[%clk 0:00:03.9]} 47. a4 {[%clk 0:00:57.3]}
47... Be1 {[%clk 0:00:04.2]} 48. b5 {[%clk 0:00:56.6]} 48... Rb6 {[%clk
0:00:03.9]} 49. Ba3 {[%clk 0:00:56.2]} 49... Ba5 {[%clk 0:00:03]} 50. Ra7 {[%clk
0:00:54.9]} 50... Bd2 {[%clk 0:00:02.7]} 51. Bxd6 {[%clk 0:00:54.2]} 51... Nc8
{[%clk 0:00:01.8]} 52. Bc5 {[%clk 0:00:53.4]} 52... Rb8 {[%clk 0:00:01.8]} 53.
Rac7 {[%clk 0:00:52.5]} 53... Ra8 {[%clk 0:00:01.8]} 54. Rf7+ {[%clk 0:00:50]}
54... Kg5 {[%clk 0:00:01.8]} 55. Bf2 {[%clk 0:00:39]} 55... Nd6 {[%clk
0:00:02.3]} 56. Rg7+ {[%clk 0:00:38.9]} 56... Kf6 {[%clk 0:00:02.6]} 57. Bh4#
{[%clk 0:00:36.5]} 1-0

[Event "Late-Titled-Tuesday-Blitz-May-07-2024"]
[Site "Chess.com"]
[Date "2024.05.07"]
[Round "10"]
[White "MusicCityMaster"]
[Black "andrew-blr"]
[Result "0-1"]
[WhiteElo "2471"]
[BlackElo "2601"]
[TimeControl "180+1"]
[EndTime "15:57:09 PDT"]
[Termination "andrew-blr won by resignation"]

1. d4 {[%clk 0:03:00.9]} 1... d5 {[%clk 0:02:59.5]} 2. c4 {[%clk 0:03:01.1]}
2... e6 {[%clk 0:02:59.6]} 3. Nf3 {[%clk 0:03:00.6]} 3... c5 {[%clk 0:02:59.6]}
4. e3 {[%clk 0:02:58.8]} 4... Nf6 {[%clk 0:02:58.9]} 5. Nc3 {[%clk 0:02:58.7]}
5... a6 {[%clk 0:02:58.9]} 6. Bd3 {[%clk 0:02:59]} 6... dxc4 {[%clk 0:02:56.3]}
7. Bxc4 {[%clk 0:02:59.9]} 7... b5 {[%clk 0:02:56.6]} 8. Bd3 {[%clk 0:02:59.4]}
8... Bb7 {[%clk 0:02:57]} 9. O-O {[%clk 0:02:57.6]} 9... Nbd7 {[%clk 0:02:57.1]}
10. Qe2 {[%clk 0:02:53.2]} 10... Bd6 {[%clk 0:02:53.2]} 11. Rd1 {[%clk
0:02:52.5]} 11... Qc7 {[%clk 0:02:53]} 12. h3 {[%clk 0:02:52.6]} 12... O-O
{[%clk 0:02:50.5]} 13. e4 {[%clk 0:02:52.7]} 13... cxd4 {[%clk 0:02:49.9]} 14.
Nxd4 {[%clk 0:02:52.8]} 14... Ne5 {[%clk 0:02:40.7]} 15. Bb1 {[%clk 0:02:49.3]}
15... Ng6 {[%clk 0:02:35.2]} 16. Bg5 {[%clk 0:02:30.5]} 16... Bf4 {[%clk
0:02:08.8]} 17. Bxf6 {[%clk 0:02:28.8]} 17... gxf6 {[%clk 0:02:08.6]} 18. a3
{[%clk 0:02:19.3]} 18... Rfd8 {[%clk 0:02:04.7]} 19. Ba2 {[%clk 0:02:18.6]}
19... Qb6 {[%clk 0:01:53.8]} 20. Nf3 {[%clk 0:01:57.2]} 20... Kg7 {[%clk
0:01:47.7]} 21. h4 {[%clk 0:01:56.3]} 21... Rxd1+ {[%clk 0:01:33.6]} 22. Rxd1
{[%clk 0:01:55.4]} 22... Rd8 {[%clk 0:01:34.2]} 23. Rxd8 {[%clk 0:01:50.2]}
23... Qxd8 {[%clk 0:01:33.7]} 24. h5 {[%clk 0:01:46.2]} 24... Ne5 {[%clk
0:01:33.3]} 25. Nxe5 {[%clk 0:01:44.7]} 25... fxe5 {[%clk 0:01:30.3]} 26. Qg4+
{[%clk 0:01:25.4]} 26... Kh6 {[%clk 0:01:23]} 27. g3 {[%clk 0:01:05.5]} 27...
Qg5 {[%clk 0:00:59.6]} 28. Bxe6 {[%clk 0:00:48.1]} 28... Qxg4 {[%clk 0:00:55.4]}
29. Bxg4 {[%clk 0:00:47.5]} 29... Bc1 {[%clk 0:00:55.3]} 30. Nd1 {[%clk
0:00:42.9]} 30... Bxe4 {[%clk 0:00:54]} 31. Kf1 {[%clk 0:00:37.7]} 31... Bd3+
{[%clk 0:00:36.7]} 32. Ke1 {[%clk 0:00:36.5]} 32... f5 {[%clk 0:00:36.4]} 33.
Bf3 {[%clk 0:00:27.6]} 33... e4 {[%clk 0:00:35.1]} 34. Be2 {[%clk 0:00:27.6]}
34... Bxe2 {[%clk 0:00:29.7]} 35. Kxe2 {[%clk 0:00:28.5]} 35... Kxh5 {[%clk
0:00:29.9]} 36. f3 {[%clk 0:00:25.4]} 36... Kg5 {[%clk 0:00:28.9]} 37. Kf2
{[%clk 0:00:20.8]} 37... h5 {[%clk 0:00:27.8]} 38. Ke2 {[%clk 0:00:20.5]} 38...
Kf6 {[%clk 0:00:26.2]} 39. Kf2 {[%clk 0:00:19.4]} 39... Ke5 {[%clk 0:00:26.6]}
40. Ke2 {[%clk 0:00:19.8]} 40... Kd4 {[%clk 0:00:26.3]} 41. Kf2 {[%clk
0:00:17.2]} 41... a5 {[%clk 0:00:26.1]} 42. Ke2 {[%clk 0:00:16.1]} 42... a4
{[%clk 0:00:26.3]} 43. Nc3 {[%clk 0:00:15.4]} 43... Bxb2 {[%clk 0:00:24.7]} 44.
Nxb5+ {[%clk 0:00:15.6]} 44... Kc5 {[%clk 0:00:23.3]} 45. Nc7 {[%clk 0:00:14.4]}
45... Bxa3 {[%clk 0:00:22.4]} 46. Ne6+ {[%clk 0:00:15]} 46... Kc4 {[%clk
0:00:21.5]} 47. Ng7 {[%clk 0:00:14.8]} 47... Bb2 {[%clk 0:00:21.3]} 48. Nxf5
{[%clk 0:00:13.2]} 48... exf3+ {[%clk 0:00:21.7]} 49. Kf2 {[%clk 0:00:13]} 49...
a3 {[%clk 0:00:22.2]} 50. Ne3+ {[%clk 0:00:12.3]} 50... Kb3 {[%clk 0:00:22.2]}
51. Kxf3 {[%clk 0:00:04.9]} 51... a2 {[%clk 0:00:21.8]} 0-1

[Event "Late-Titled-Tuesday-Blitz-May-07-2024"]
[Site "Chess.com"]
[Date "2024.05.07"]
[Round "10"]
[White "Navyblue1"]
[Black "schondeln"]
[Result "1-0"]
[WhiteElo "2236"]
[BlackElo "2314"]
[TimeControl "180+1"]
[EndTime "15:57:10 PDT"]
[Termination "Navyblue1 won by resignation"]

1. d4 {[%clk 0:03:00.9]} 1... d5 {[%clk 0:02:59.6]} 2. c4 {[%clk 0:02:59.8]}
2... c6 {[%clk 0:02:59.8]} 3. Nc3 {[%clk 0:02:58]} 3... Nf6 {[%clk 0:02:59.9]}
4. cxd5 {[%clk 0:02:52.4]} 4... cxd5 {[%clk 0:02:59.7]} 5. Bf4 {[%clk
0:02:52.1]} 5... Nc6 {[%clk 0:02:59.6]} 6. e3 {[%clk 0:02:52.5]} 6... Bf5 {[%clk
0:02:54.8]} 7. Qb3 {[%clk 0:02:51.6]} 7... Na5 {[%clk 0:02:53.6]} 8. Bb5+ {[%clk
0:02:50]} 8... Bd7 {[%clk 0:02:52.9]} 9. Qa4 {[%clk 0:02:49.8]} 9... Nc6 {[%clk
0:02:37.4]} 10. Nf3 {[%clk 0:02:41.6]} 10... e6 {[%clk 0:02:36.3]} 11. Bxc6
{[%clk 0:02:41.4]} 11... Bxc6 {[%clk 0:02:35.9]} 12. Qd1 {[%clk 0:02:39.8]}
12... Qb6 {[%clk 0:02:33.1]} 13. Rb1 {[%clk 0:02:31.3]} 13... Be7 {[%clk
0:02:27.6]} 14. O-O {[%clk 0:02:31.1]} 14... O-O {[%clk 0:02:27.7]} 15. Ne5
{[%clk 0:02:31.2]} 15... Rfc8 {[%clk 0:02:27.6]} 16. h3 {[%clk 0:02:25.1]} 16...
Be8 {[%clk 0:02:27.2]} 17. Qd3 {[%clk 0:02:19.7]} 17... a6 {[%clk 0:02:21.3]}
18. Rfc1 {[%clk 0:02:19.7]} 18... h6 {[%clk 0:02:21.7]} 19. Rc2 {[%clk
0:02:05.8]} 19... Nd7 {[%clk 0:02:13.3]} 20. Rbc1 {[%clk 0:01:57.2]} 20... Nxe5
{[%clk 0:02:13]} 21. Bxe5 {[%clk 0:01:56.3]} 21... Rc4 {[%clk 0:02:07.3]} 22. e4
{[%clk 0:01:28.9]} 22... f6 {[%clk 0:01:35.1]} 23. exd5 {[%clk 0:01:23.8]} 23...
Rxc3 {[%clk 0:01:34.9]} 24. bxc3 {[%clk 0:01:12.5]} 24... fxe5 {[%clk
0:01:33.1]} 25. dxe5 {[%clk 0:01:10.4]} 25... exd5 {[%clk 0:01:32]} 26. Qxd5+
{[%clk 0:01:09.4]} 26... Bf7 {[%clk 0:01:32.3]} 27. Qe4 {[%clk 0:01:07.6]} 27...
Bc5 {[%clk 0:01:30.2]} 28. Re2 {[%clk 0:01:00.5]} 28... Be6 {[%clk 0:01:27]} 29.
Rb1 {[%clk 0:00:54.9]} 29... Qc6 {[%clk 0:01:18.1]} 30. Qxc6 {[%clk 0:00:38.7]}
30... bxc6 {[%clk 0:01:19]} 31. a4 {[%clk 0:00:35.9]} 31... Rf8 {[%clk
0:01:14.2]} 32. Rb7 {[%clk 0:00:34]} 32... Rf4 {[%clk 0:01:02.6]} 33. Rc7 {[%clk
0:00:29.2]} 33... Rc4 {[%clk 0:00:57.5]} 34. Kh2 {[%clk 0:00:24.4]} 34... Bb6
{[%clk 0:00:56.8]} 35. Rb7 {[%clk 0:00:20.7]} 35... Ba5 {[%clk 0:00:56.8]} 36.
Ra7 {[%clk 0:00:17.6]} 36... Bxc3 {[%clk 0:00:50]} 37. Rxa6 {[%clk 0:00:17.1]}
37... Bd4 {[%clk 0:00:32]} 38. Ra8+ {[%clk 0:00:15.8]} 38... Kh7 {[%clk
0:00:31.4]} 39. Re8 {[%clk 0:00:14.7]} 39... Bf7 {[%clk 0:00:28.8]} 40. Re7
{[%clk 0:00:14.7]} 40... Kg6 {[%clk 0:00:24.5]} 41. e6 {[%clk 0:00:14.9]} 41...
Bg8 {[%clk 0:00:24.7]} 42. Rd7 {[%clk 0:00:14.5]} 42... Bf6 {[%clk 0:00:15]} 43.
e7 {[%clk 0:00:14.2]} 43... Bf7 {[%clk 0:00:15.4]} 44. e8=Q {[%clk 0:00:13.6]}
44... Bxe8 {[%clk 0:00:15.9]} 45. Rxe8 {[%clk 0:00:13.9]} 45... Rxa4 {[%clk
0:00:16.5]} 46. Rc8 {[%clk 0:00:13.5]} 46... Ra2 {[%clk 0:00:13.8]} 47. g3
{[%clk 0:00:12.3]} 47... Rxf2+ {[%clk 0:00:13.3]} 48. Kg1 {[%clk 0:00:12.7]}
48... Rc2 {[%clk 0:00:13.1]} 49. Kf1 {[%clk 0:00:11.5]} 49... c5 {[%clk
0:00:13]} 50. Rd5 {[%clk 0:00:11.3]} 50... Rh2 {[%clk 0:00:10.5]} 51. Rcxc5
{[%clk 0:00:10.9]} 51... Rxh3 {[%clk 0:00:10.5]} 52. Kg2 {[%clk 0:00:10.2]}
52... Rh5 {[%clk 0:00:07]} 53. Rxh5 {[%clk 0:00:09.7]} 1-0

[Event "Late-Titled-Tuesday-Blitz-May-07-2024"]
[Site "Chess.com"]
[Date "2024.05.07"]
[Round "10"]
[White "profaVa"]
[Black "FMOlexandrProhorov"]
[Result "1-0"]
[WhiteElo "2360"]
[BlackElo "2300"]
[TimeControl "180+1"]
[EndTime "15:57:16 PDT"]
[Termination "profaVa won on time"]

1. e4 {[%clk 0:02:58.5]} 1... c5 {[%clk 0:02:59.8]} 2. Nf3 {[%clk 0:02:57.8]}
2... e6 {[%clk 0:02:59.7]} 3. c3 {[%clk 0:02:57.3]} 3... Nf6 {[%clk 0:02:59.3]}
4. e5 {[%clk 0:02:56.9]} 4... Nd5 {[%clk 0:02:59.6]} 5. d4 {[%clk 0:02:57.7]}
5... cxd4 {[%clk 0:02:59.3]} 6. cxd4 {[%clk 0:02:58.6]} 6... d6 {[%clk
0:02:59.6]} 7. Bc4 {[%clk 0:02:57.6]} 7... Nb6 {[%clk 0:02:59.5]} 8. Bb3 {[%clk
0:02:56.8]} 8... Nc6 {[%clk 0:02:53.4]} 9. Qe2 {[%clk 0:02:55.7]} 9... dxe5
{[%clk 0:02:47.3]} 10. dxe5 {[%clk 0:02:55.2]} 10... Qc7 {[%clk 0:02:40.8]} 11.
Nc3 {[%clk 0:02:54.3]} 11... a6 {[%clk 0:02:37.6]} 12. Bf4 {[%clk 0:02:53.4]}
12... Bb4 {[%clk 0:02:35.5]} 13. O-O {[%clk 0:02:48.2]} 13... Bxc3 {[%clk
0:02:32.4]} 14. bxc3 {[%clk 0:02:47.7]} 14... Na5 {[%clk 0:02:30.9]} 15. Rad1
{[%clk 0:02:38.3]} 15... Bd7 {[%clk 0:02:27.9]} 16. Ng5 {[%clk 0:02:23]} 16...
Bb5 {[%clk 0:02:02.9]} 17. c4 {[%clk 0:02:09.4]} 17... Bxc4 {[%clk 0:02:02.1]}
18. Bxc4 {[%clk 0:02:08.8]} 18... Qxc4 {[%clk 0:02:02.1]} 19. Qf3 {[%clk
0:01:55.4]} 19... Nd5 {[%clk 0:02:00.3]} 20. Ne4 {[%clk 0:01:52.6]} 20... O-O
{[%clk 0:01:57.2]} 21. Rfe1 {[%clk 0:01:49.3]} 21... Rad8 {[%clk 0:01:49.8]} 22.
Qg3 {[%clk 0:01:36.7]} 22... Nxf4 {[%clk 0:01:45.5]} 23. Qxf4 {[%clk 0:01:35.5]}
23... Rxd1 {[%clk 0:01:36.1]} 24. Rxd1 {[%clk 0:01:34.9]} 24... Qc2 {[%clk
0:01:34.9]} 25. Rc1 {[%clk 0:01:30.8]} 25... Qxa2 {[%clk 0:01:31]} 26. Nf6+
{[%clk 0:01:28.4]} 26... Kh8 {[%clk 0:01:27.8]} 27. Nd7 {[%clk 0:01:12.1]} 27...
Rd8 {[%clk 0:01:17.8]} 28. Qg5 {[%clk 0:00:53.5]} 28... Rg8 {[%clk 0:00:52.2]}
29. h4 {[%clk 0:00:44.1]} 29... Qd5 {[%clk 0:00:47.9]} 30. Nf6 {[%clk
0:00:40.3]} 30... Qd8 {[%clk 0:00:10.8]} 31. Nxg8 {[%clk 0:00:28.5]} 31... Qxg8
{[%clk 0:00:10.4]} 32. Rc7 {[%clk 0:00:17.5]} 32... Nc6 {[%clk 0:00:07.5]} 33.
Rxb7 {[%clk 0:00:12.7]} 33... h6 {[%clk 0:00:08]} 34. Qc1 {[%clk 0:00:11.2]}
34... Qe8 {[%clk 0:00:07.7]} 35. Rc7 {[%clk 0:00:09.4]} 35... Ne7 {[%clk
0:00:07]} 36. Qc5 {[%clk 0:00:09.8]} 36... Ng8 {[%clk 0:00:06.3]} 37. Rc8 {[%clk
0:00:09]} 37... Qa4 {[%clk 0:00:06.2]} 38. Qf8 {[%clk 0:00:08.8]} 38... Kh7
{[%clk 0:00:05.6]} 39. Qxg8+ {[%clk 0:00:07.8]} 39... Kg6 {[%clk 0:00:05.7]} 40.
h5+ {[%clk 0:00:08.1]} 40... Kxh5 {[%clk 0:00:05.1]} 41. Qxf7+ {[%clk
0:00:08.4]} 41... Kg5 {[%clk 0:00:04.6]} 42. Qxg7+ {[%clk 0:00:07.9]} 42... Kf5
{[%clk 0:00:05.5]} 43. Qf6+ {[%clk 0:00:07.1]} 43... Ke4 {[%clk 0:00:05.4]} 44.
Qh4+ {[%clk 0:00:06.3]} 1-0